bitfinex-derivatives/quotes_ETHF0:USTF0_20240920
["timestamp","ask_amount","ask_price","bid_price","bid_amount"]
[1726838179866,0.39504,2531.0,2530.7,0.39508]
[1726838180166,3.2078,2531.2,2530.1,0.8042]
[1726838180167,3.2078,2531.2,2530.3,3.2078]
[1726838180364,0.9876,2531.0,2530.3,3.2078]
[1726838180561,0.39506,2530.9,2530.6,0.3951]
[1726838180766,4.19534,2531.2,2530.6,0.39509]
[1726838180957,4.19534,2531.2,2530.5,0.3951]
[1726838181162,0.39507,2530.8,2530.5,0.3951]
[1726838181464,0.39507,2530.8,2530.5,0.39511]
[1726838181664,0.39505,2530.9,2530.6,0.39509]
[1726838181865,4.19534,2531.2,2530.6,0.39509]
[1726838182167,4.19534,2531.2,2530.3,3.2078]
[1726838182168,0.3951,2530.6,2530.3,3.60294]
[1726838182376,0.39509,2530.7,2530.4,0.39512]
[1726838182664,0.39511,2530.6,2530.1,0.8042]
[1726838182870,0.39513,2530.5,2530.2,0.39515]
[1726838183061,0.39511,2530.6,2530.1,0.8042]
[1726838183262,0.39512,2530.5,2530.2,0.39515]
[1726838183470,0.98768,2530.8,2530.1,0.8042]
[1726838183666,0.98768,2530.8,2530.1,0.3958]
[1726838183667,0.98781,2530.5,2530.1,0.3958]
[1726838183870,0.98781,2530.5,2530.0,0.2]
[1726838183871,0.39518,2530.1,2530.0,0.2]
[1726838184073,4.34798,2530.1,2530.0,0.2]
[1726838184265,11.33593,2530.1,2530.0,0.2]
[1726838184472,11.33593,2530.1,2530.0,0.14589015]
[1726838184668,0.39523,2529.8,2529.5,3.2078]
[1726838184871,0.39523,2529.8,2529.6,0.39525]
[1726838185074,0.3952,2530.0,2529.5,3.2078]
[1726838185272,0.98793,2530.2,2529.8,0.39522]
[1726838185476,0.98791,2530.2,2529.5,3.2078]
[1726838185770,0.98813,2529.7,2529.2,0.79511]
[1726838185972,3.2078,2529.6,2529.2,0.3998]
[1726838186175,0.98807,2529.8,2529.3,0.39529]
[1726838186467,0.39528,2529.5,2529.2,0.3998]
[1726838186774,4.19585,2529.9,2529.2,0.3998]
[1726838186775,0.98807,2529.8,2529.2,0.3998]
[1726838186965,0.39528,2529.5,2529.3,0.3953]
[1726838187160,0.39527,2529.6,2529.3,0.39529]
[1726838187366,0.39527,2529.5,2529.3,0.39529]
[1726838187669,0.39528,2529.5,2529.3,0.39529]
[1726838187864,0.98811,2529.7,2529.2,0.3998]
[1726838188067,0.39527,2529.5,2529.3,0.3953]
[1726838188270,0.98807,2529.8,2529.4,0.39527]
[1726838188571,3.2078,2529.9,2529.2,0.3998]
[1726838188772,0.3952,2530.0,2529.4,3.2078]
[1726838188969,10.90673,2530.2,2529.4,4.19602]
[1726838189170,10.90674,2530.2,2529.7,0.39523]
[1726838189371,0.39521,2529.9,2529.6,0.39524]
[1726838189674,3.2078,2530.2,2529.3,0.98823]
[1726838189869,3.60302,2529.9,2529.6,0.39524]
[1726838190072,0.39525,2529.7,2529.4,3.60308]
[1726838190273,3.60301,2529.9,2529.3,0.98826]
[1726838190465,3.2078,2529.9,2529.8,0.39522]
[1726838190667,3.2078,2529.9,2529.5,0.98818]
[1726838190863,0.39519,2530.1,2529.8,0.39522]
[1726838191173,4.19569,2530.3,2529.5,3.2078]
[1726838191372,0.39522,2529.8,2529.5,3.2078]
[1726838191570,0.98799,2530.0,2529.5,3.60307]
[1726838191869,0.39519,2530.0,2529.8,0.39522]
[1726838192073,3.2078,2530.3,2529.7,0.39523]
[1726838192074,0.98791,2530.2,2529.7,0.39523]
[1726838192266,0.98791,2530.2,2529.5,3.2078]
[1726838192267,0.98795,2530.1,2529.5,3.2078]
[1726838192467,3.2078,2529.9,2529.5,3.2078]
[1726838192667,0.98795,2530.1,2529.5,3.2078]
[1726838192863,3.2078,2530.5,2529.9,3.2078]
[1726838193069,0.39511,2530.6,2530.0,1.76029]
[1726838193267,3.2078,2531.0,2530.3,3.2078]
[1726838193464,3.2078,2531.0,2530.4,0.98783]
[1726838193668,3.2078,2531.0,2530.3,3.2078]
[1726838193872,0.39507,2530.9,2530.6,0.39508]
[1726838194168,3.2078,2531.0,2530.3,3.2078]
[1726838194374,0.39507,2530.8,2530.6,0.39509]
[1726838194674,0.39507,2530.8,2530.3,3.2078]
[1726838194975,3.6028,2531.3,2530.6,0.98775]
[1726838195176,3.6028,2531.3,2530.7,0.7873]
[1726838195481,3.2078,2531.3,2530.7,0.7873]
[1726838196074,0.39495,2531.6,2531.0,3.2078]
[1726838196275,0.39495,2531.6,2531.2,0.395]
[1726838196470,3.2078,2531.8,2531.0,3.2078]
[1726838196671,3.2078,2531.8,2531.1,0.3796]
[1726838197071,3.2078,2532.1,2531.6,0.39493]
[1726838197277,3.2078,2532.1,2531.1,0.3796]
[1726838197278,3.2078,2532.1,2531.7,0.39493]
[1726838197573,3.2078,2532.1,2531.7,0.39492]
[1726838197873,3.2078,2532.1,2531.2,4.27]
[1726838197874,0.39484,2532.3,2531.8,4.7402]
[1726838198078,0.39483,2532.4,2531.9,4.00778]
[1726838198264,0.98694,2532.7,2531.9,4.00779]
[1726838198465,0.39481,2532.5,2532.1,3.2078]
[1726838198678,3.2078,2532.6,2531.9,0.7879]
[1726838198878,3.2078,2532.2,2531.9,0.4051]
[1726838199176,3.2078,2532.2,2531.8,0.3957]
[1726838199177,0.39488,2532.0,2531.8,0.3957]
[1726838199376,3.2078,2532.2,2531.8,0.3957]
[1726838199671,0.98696,2532.7,2531.8,0.3957]
[1726838199873,0.39486,2532.2,2531.8,0.79061]
[1726838200176,0.39485,2532.2,2531.8,0.3957]
[1726838200384,0.39484,2532.3,2531.9,3.9496]
[1726838200680,0.39485,2532.2,2531.8,0.7906]
[1726838200976,4.1947,2532.8,2532.0,3.2078]
[1726838201163,0.39481,2532.5,2532.1,4.6528]
[1726838201368,4.1947,2532.8,2532.1,14.6016]
[1726838201569,0.39481,2532.5,2532.2,3.9488]
[1726838201871,0.98684,2533.0,2532.3,3.2078]
[1726838202072,0.98686,2532.9,2532.5,3.2078]
[1726838202275,3.2078,2533.2,2533.1,0.39471]
[1726838202677,3.2078,2533.5,2533.4,0.39466]
[1726838202882,3.2078,2534.1,2534.0,0.39457]
[1726838203068,13.95445806,2535.4,2533.2,0.98674]
[1726838203069,3.2078,2534.4,2534.3,0.39452]
[1726838203269,3.5992,2534.7,2533.8,4.19431]
[1726838203473,3.2078,2534.7,2534.6,0.39448]
[1726838203873,0.236,2535.3,2535.0,0.3944]
[1726838204184,3.2078,2535.1,2534.3,0.98628]
[1726838204369,3.2078,2535.5,2534.9,3.2078]
[1726838204875,3.2078,2535.9,2535.2,3.2078]
[1726838205085,3.60208,2535.9,2534.9,3.2078]
[1726838205273,3.2078,2535.8,2535.5,0.39433]
[1726838205579,3.2078,2536.1,2535.2,3.2078]
[1726838206073,3.2078,2536.4,2535.7,0.39429]
[1726838206275,3.2078,2536.4,2535.5,3.2078]
[1726838206582,3.2078,2536.7,2536.6,0.39416]
[1726838206770,3.2078,2537.1,2536.8,0.39413]
[1726838206972,0.3765,2537.8,2536.3,3.2078]
[1726838206973,3.2078,2537.5,2536.3,3.2078]
[1726838207174,3.60183,2537.5,2536.7,0.39414]
[1726838207480,3.2078,2537.5,2536.8,0.39413]
[1726838207687,3.2078,2537.5,2536.8,3.60193]
[1726838207985,3.2078,2537.5,2537.2,0.39406]
[1726838208187,3.2078,2537.5,2536.9,3.9416]
[1726838208481,3.2078,2537.5,2536.9,0.39412]
[1726838208680,3.2078,2537.5,2536.6,4.27]
[1726838208681,3.2078,2537.2,2536.6,4.27]
[1726838208867,3.2078,2537.5,2536.6,4.27]
[1726838209071,3.2078,2537.5,2535.4,0.19618522]
[1726838209072,3.2078,2537.2,2536.2,14.3658]
[1726838209278,3.2078,2537.2,2536.6,3.2078]
[1726838209583,3.2078,2537.2,2536.8,0.39413]
[1726838209784,3.2078,2537.2,2536.9,0.39411]
[1726838209981,3.2078,2537.2,2537.0,0.3941]
[1726838210285,3.2078,2537.2,2537.0,6.39409]
[1726838210581,3.2078,2537.4,2536.2,3.2078]
[1726838210780,3.2078,2537.1,2536.8,0.39413]
[1726838210981,3.2078,2537.1,2536.6,3.2078]
[1726838211478,3.2078,2537.5,2536.7,3.9416]
[1726838211672,3.2078,2537.5,2536.9,3.2078]
[1726838211871,3.2078,2537.5,2536.9,7.4778]
[1726838212071,3.2078,2537.5,2537.1,0.39408]
[1726838212481,3.2078,2537.5,2537.1,0.39409]
[1726838212678,3.2078,2537.2,2536.9,4.27]
[1726838212989,3.2078,2537.2,2536.6,3.2078]
[1726838213174,3.2078,2537.2,2536.7,0.39414]
[1726838213488,3.2078,2537.2,2536.6,0.39416]
[1726838213672,3.2078,2537.2,2536.7,0.39415]
[1726838213873,3.2078,2537.2,2537.1,0.39409]
[1726838214077,3.2078,2537.2,2536.8,8.2116]
[1726838214078,3.2078,2537.2,2536.8,7.87193]
[1726838214283,3.2078,2537.2,2536.9,4.33571]
[1726838214480,3.2078,2537.2,2536.3,3.2078]
[1726838214985,3.2078,2537.2,2536.6,3.2078]
[1726838215188,3.2078,2537.2,2536.6,0.39415]
[1726838215482,3.2078,2537.2,2536.6,3.60196]
[1726838215788,3.2078,2537.2,2536.6,3.2078]
[1726838216083,3.2078,2537.2,2536.6,0.39416]
[1726838216283,3.2078,2536.8,2536.0,3.2078]
[1726838216585,3.2078,2536.8,2536.2,3.2078]
[1726838216779,3.2078,2536.8,2536.3,3.9424]
[1726838216989,3.2078,2536.8,2536.5,0.39418]
[1726838217285,3.2078,2536.8,2535.9,3.2078]
[1726838217484,3.2078,2536.5,2535.9,0.39426]
[1726838217684,3.2078,2536.2,2535.9,0.39426]
[1726838217998,3.2078,2536.2,2535.1,0.98597]
[1726838217999,3.2078,2536.2,2535.1,4.27]
[1726838218287,7.127,2537.4,2534.9,7.5259]
[1726838218288,3.2078,2535.8,2534.9,7.5259]
[1726838218482,3.2078,2535.5,2535.0,0.39441]
[1726838218683,3.2078,2535.5,2535.0,3.2078]
[1726838218876,3.2078,2535.5,2535.1,3.944]
[1726838219075,3.2078,2535.5,2535.1,4.33839]
[1726838219276,3.2078,2535.2,2534.9,0.79333]
[1726838219482,3.2078,2535.2,2534.9,0.3989]
[1726838219681,3.2078,2535.2,2535.0,3.9448]
[1726838220379,3.2078,2535.2,2534.2,7.8899]
[1726838220380,3.2078,2535.2,2534.2,3.99133]
[1726838220680,9.51015,2536.5,2534.7,0.39446]
[1726838220681,3.2078,2534.8,2534.7,0.39446]
[1726838221179,3.2078,2535.1,2534.7,9.9448]
[1726838221384,3.2078,2535.1,2534.4,7.4778]
[1726838221588,3.2078,2535.1,2534.5,3.9448]
[1726838221780,3.2078,2535.1,2534.6,0.39447]
[1726838221982,3.2078,2535.1,2534.7,0.39446]
[1726838222182,3.2078,2535.1,2534.6,0.39446]
[1726838222484,0.98578,2535.7,2534.2,0.389]
[1726838222485,3.2078,2534.9,2534.2,0.389]
[1726838222688,3.2078,2534.5,2533.9,0.4069]
[1726838222984,3.2078,2534.2,2534.0,0.39456]
[1726838223192,3.2078,2534.5,2534.1,4.34095]
[1726838223382,3.2078,2534.5,2534.0,0.39456]
[1726838223577,3.2078,2534.5,2534.0,3.9464]
[1726838223792,3.2078,2534.8,2534.4,4.27]
[1726838223979,3.2078,2534.5,2534.4,4.27]
[1726838224180,3.2078,2534.5,2534.4,4.66451]
[1726838224381,3.2078,2534.9,2534.4,14.2156]
[1726838224582,3.2078,2534.6,2534.0,7.4778]
[1726838224788,3.2078,2534.3,2533.9,0.4069]
[1726838224987,3.2078,2534.0,2533.9,0.4069]
[1726838225181,3.2078,2534.4,2533.9,0.4069]
[1726838225386,3.2078,2534.1,2533.4,0.375]
[1726838225593,3.2078,2533.8,2533.6,0.39462]
[1726838225895,3.2078,2534.0,2533.4,0.375]
[1726838226090,3.2078,2534.0,2533.3,4.27]
[1726838226091,3.2078,2533.6,2533.3,4.27]
[1726838226281,3.2078,2533.6,2533.4,3.9472]
[1726838226600,2.61537953,2533.6,2533.3,3.9472]
[1726838226793,2.61537953,2533.6,2532.6,4.27]
[1726838226997,2.61537953,2533.6,2533.1,0.3947]
[1726838227299,2.61537953,2533.6,2532.7,7.36958909]
[1726838227593,3.2078,2533.3,2533.1,0.3947]
[1726838227782,3.2078,2533.3,2532.7,4.16178909]
[1726838227981,3.2078,2533.3,2532.8,3.948]
[1726838228182,3.2078,2533.3,2532.7,3.948]
[1726838228379,3.2078,2533.3,2532.8,0.39475]
[1726838228591,3.2078,2533.3,2533.2,0.39469]
[1726838229094,3.2078,2533.3,2533.2,10.34189]
[1726838229297,3.2078,2533.9,2533.7,0.3946]
[1726838229496,3.2078,2534.2,2533.5,4.27]
[1726838229686,3.2078,2533.9,2533.4,0.39466]
[1726838229883,3.2078,2533.9,2533.3,3.5907]
[1726838230091,3.2078,2533.9,2533.7,0.39461]
[1726838230292,3.2078,2533.9,2533.8,0.3946]
[1726838230492,3.2078,2533.9,2533.8,6.0]
[1726838230698,0.3965,2534.7,2533.8,10.341]
[1726838230699,3.2078,2534.2,2533.8,10.341]
[1726838230889,0.3965,2534.7,2533.3,0.3829]
[1726838230890,3.2078,2533.9,2533.3,0.3829]
[1726838231084,3.2078,2533.6,2533.3,0.3829]
[1726838231398,3.2078,2533.6,2533.0,0.39471]
[1726838231591,3.2078,2533.3,2533.1,3.9472]
[1726838231788,3.2078,2533.3,2533.1,6.3947]
[1726838232090,3.2078,2533.3,2533.2,3.9472]
[1726838232289,3.2078,2533.3,2533.2,9.9472]
[1726838232485,3.2078,2533.3,2532.3,4.46973308]
[1726838232687,3.2078,2533.0,2532.1,0.7763]
[1726838232990,3.2078,2532.7,2532.1,0.7763]
[1726838233294,3.2078,2532.7,2532.3,4.27]
[1726838233498,3.2078,2533.0,2532.9,0.39473]
[1726838233689,3.2078,2533.6,2533.2,0.39469]
[1726838233995,3.2078,2533.6,2532.8,4.27]
[1726838234191,3.2078,2533.6,2533.2,0.39469]
[1726838234588,3.2078,2533.3,2532.8,0.39474]
[1726838234789,3.2078,2533.0,2532.4,4.6686]
[1726838234993,3.2078,2533.0,2532.4,5.65565]
[1726838235191,1.38234,2534.0,2533.1,0.3947]
[1726838235192,3.2078,2533.5,2533.1,0.3947]
[1726838235393,3.2078,2533.5,2533.4,0.39466]
[1726838235699,3.2078,2534.2,2533.2,7.4778]
[1726838235991,3.2078,2534.1,2533.8,4.27]
[1726838236204,0.98617,2534.7,2533.9,3.9464]
[1726838236397,0.98617,2534.7,2533.4,4.27]
[1726838236398,3.2078,2533.9,2533.3,0.3737]
[1726838236599,3.2078,2533.9,2533.4,8.04866]
[1726838236901,3.2078,2533.9,2533.3,0.3737]
[1726838237098,3.2078,2533.9,2533.5,0.39463]
[1726838237298,3.2078,2533.9,2533.6,0.39462]
[1726838237595,3.2078,2534.2,2533.6,3.2078]
[1726838237796,3.2078,2534.2,2534.0,0.39455]
[1726838237994,3.2078,2534.1,2533.7,0.3946]
[1726838238196,3.2078,2534.1,2533.7,0.39461]
[1726838238398,3.2078,2534.1,2533.6,0.39462]
[1726838238799,3.2078,2534.1,2533.6,3.9464]
[1726838238997,3.2078,2534.1,2533.7,4.27]
[1726838239307,3.2078,2534.1,2533.7,9.42650268]
[1726838239504,3.2078,2534.1,2533.7,8.2164]
[1726838239800,3.2078,2534.1,2533.9,0.39458]
[1726838239998,3.2078,2534.1,2533.8,0.3946]
[1726838240200,3.2078,2534.1,2533.8,3.9464]
[1726838240391,3.2078,2534.1,2534.0,0.39457]
[1726838240597,3.2078,2534.4,2534.0,3.9464]
[1726838240896,3.2078,2534.4,2534.0,0.39456]
[1726838241100,3.2078,2534.4,2533.8,4.27]
[1726838241101,3.60231,2534.4,2533.8,4.27]
[1726838241609,3.2078,2534.4,2533.8,11.4242]
[1726838241798,0.4069,2535.1,2534.4,0.3945]
[1726838241799,3.2078,2534.7,2534.4,0.3945]
[1726838242007,3.2078,2534.7,2534.2,7.4778]
[1726838242302,3.2078,2534.7,2534.6,0.39448]
[1726838242497,3.2078,2534.7,2534.3,3.9456]
[1726838242498,3.2078,2535.0,2534.5,4.27]
[1726838242803,3.2078,2534.9,2534.6,5.22014174]
[1726838243201,3.2078,2534.9,2534.5,4.27]
[1726838243202,3.2078,2534.9,2534.5,0.39449]
[1726838243398,3.2078,2534.9,2534.6,0.39447]
[1726838243605,3.2078,2534.9,2534.2,4.27]
[1726838243796,3.2078,2534.9,2534.5,0.39449]
[1726838244002,3.2078,2534.9,2534.2,4.27]
[1726838244301,0.39441,2535.1,2534.4,0.3945]
[1726838244601,3.2078,2534.5,2533.6,0.39463]
[1726838244806,3.2078,2534.1,2533.6,0.39462]
[1726838245106,3.2078,2534.1,2533.5,5.09911417]
[1726838245399,3.2078,2534.1,2533.8,4.27]
[1726838245699,3.2078,2534.5,2533.8,4.27]
[1726838245893,3.2078,2533.9,2533.8,4.6646]
[1726838246095,3.2078,2534.2,2534.1,0.39455]
[1726838246500,3.2078,2534.2,2534.1,9.9464]
[1726838246701,3.2078,2534.2,2534.1,3.9464]
[1726838247101,3.2078,2534.2,2532.8,0.98689]
[1726838247102,0.39458,2534.0,2533.4,11.923]
[1726838247303,3.2078,2533.9,2533.3,11.2345]
[1726838247496,3.2078,2533.9,2533.3,0.76838]
[1726838247695,3.2078,2533.6,2533.2,7.653]
[1726838247895,3.2078,2533.6,2533.2,0.39468]
[1726838248101,3.2078,2533.6,2533.3,3.9472]
[1726838248295,3.2078,2533.6,2533.4,4.34185]
[1726838248500,3.2078,2533.6,2533.2,9.13980277]
[1726838248705,3.2078,2533.6,2533.3,4.66467]
[1726838248898,3.2078,2533.6,2533.4,0.39466]
[1726838249112,3.2078,2533.6,2533.4,3.9472]
[1726838249305,3.2078,2533.6,2533.5,3.9472]
[1726838249603,3.2078,2533.6,2533.4,3.9472]
[1726838250106,3.2078,2533.6,2533.5,4.34185]
[1726838250308,3.2078,2534.0,2533.9,0.39458]
[1726838250496,3.2078,2534.4,2534.1,0.39454]
[1726838250698,3.2078,2534.4,2533.9,4.27]
[1726838250905,3.2078,2534.4,2534.0,3.9464]
[1726838251302,3.2078,2534.1,2533.9,7.654]
[1726838251508,3.2078,2534.1,2533.6,4.6671]
[1726838251509,3.2078,2534.1,2533.7,0.39461]
[1726838251703,3.2078,2533.8,2533.6,4.27]
[1726838251909,3.60241,2533.8,2533.3,4.27]
[1726838252300,3.2078,2533.8,2533.3,4.27]
[1726838252707,3.2078,2533.8,2533.3,4.66468]
[1726838253005,3.2078,2533.5,2533.3,4.27]
[1726838253208,3.2078,2533.5,2533.3,8.2164]
[1726838253504,3.2078,2533.9,2533.4,8.50137473]
[1726838253709,3.2078,2533.9,2533.8,4.6646]
[1726838254095,3.2078,2534.2,2533.8,14.2164]
[1726838254296,3.2078,2534.2,2534.1,0.39455]
[1726838254503,3.2078,2534.2,2534.1,4.66455]
[1726838254702,3.2078,2534.2,2534.1,14.61095]
[1726838255307,3.2078,2534.5,2534.4,0.3945]
[1726838255704,0.3923,2535.0,2534.6,0.39447]
[1726838255906,3.2078,2534.8,2534.7,0.39446]
[1726838256106,3.2078,2534.8,2534.1,4.27]
[1726838256497,3.2078,2534.5,2534.1,4.27]
[1726838257009,3.2078,2534.5,2534.2,4.34014]
[1726838257198,3.2078,2534.5,2534.2,9.9456]
[1726838257398,3.2078,2534.8,2534.3,9.13405981]
[1726838257602,3.2078,2535.0,2534.6,4.27]
[1726838258101,3.2078,2535.0,2534.7,0.39445]
[1726838258420,3.2078,2535.0,2534.9,0.39443]
[1726838259003,3.2078,2535.3,2535.2,0.39438]
[1726838259204,3.2078,2535.3,2535.2,4.66438]
[1726838259404,3.2078,2535.6,2535.3,4.20624047]
[1726838259710,3.2078,2535.6,2535.2,4.27]
[1726838259912,3.2078,2535.6,2535.3,3.944]
[1726838260098,3.2078,2535.6,2535.4,3.944]
[1726838260407,3.2078,2535.6,2535.5,4.33834]
[1726838260608,3.2078,2535.6,2535.5,6.0]
[1726838260804,3.2078,2535.6,2535.5,10.33834]
[1726838261116,3.2078,2535.9,2535.6,0.39431]
[1726838261300,3.2078,2535.9,2535.2,4.27]
[1726838261502,3.2078,2535.9,2535.3,3.944]
[1726838261714,3.2078,2535.9,2535.6,4.27]
[1726838262108,3.2078,2535.9,2535.7,3.944]
[1726838262604,3.2078,2535.9,2534.9,4.6564]
[1726838262802,3.2078,2535.1,2534.6,4.27]
[1726838263214,3.2078,2535.1,2534.7,3.9448]
[1726838263605,3.2078,2535.1,2534.8,4.33924]
[1726838263804,3.2078,2535.1,2534.9,3.9448]
[1726838264099,0.39443,2534.9,2534.2,4.27]
[1726838264301,3.2078,2534.7,2534.3,0.39452]
[1726838264506,3.2078,2534.7,2534.2,4.27]
[1726838264713,3.2078,2534.7,2534.6,4.66448]
[1726838265201,3.2078,2535.0,2534.6,14.2156]
[1726838265406,3.2078,2535.0,2534.9,4.27]
[1726838265703,3.2078,2535.3,2534.9,10.27]
[1726838266004,3.2078,2535.3,2535.1,0.3944]
[1726838266404,3.2078,2535.3,2535.2,8.2148]
[1726838267207,3.2078,2535.3,2535.2,14.60918]
[1726838267721,3.2078,2535.7,2535.4,0.39434]
[1726838267922,3.2078,2535.7,2535.6,4.66432]
[1726838268215,3.2078,2536.0,2535.6,4.27]
[1726838268408,3.2078,2536.3,2535.8,0.39429]
[1726838268607,3.2078,2536.3,2535.6,7.4778]
[1726838268808,3.2078,2536.3,2535.6,4.27]
[1726838269314,3.2078,2536.0,2535.8,0.39429]
[1726838269516,3.2078,2536.3,2535.9,4.27]
[1726838270015,3.2078,2536.0,2535.6,22.12193386]
[1726838270224,3.2078,2536.0,2535.6,12.442]
[1726838270512,1.36612,2536.6,2535.9,4.66427]
[1726838270513,3.2078,2536.4,2535.9,4.66427]
[1726838270920,3.2078,2536.4,2535.9,4.27]
[1726838271112,3.2078,2536.4,2536.0,0.39425]
[1726838271312,3.2078,2536.4,2535.9,4.27]
[1726838271517,3.2078,2536.4,2535.9,4.66427]
[1726838271707,3.2078,2536.1,2535.6,12.442]
[1726838271912,0.3807,2536.6,2535.3,4.6827]
[1726838271913,3.2078,2535.8,2535.3,4.6827]
[1726838272319,3.2078,2535.8,2535.4,0.39434]
[1726838272512,3.2078,2535.8,2535.3,4.6827]
[1726838272715,3.2078,2535.8,2535.4,0.39434]
[1726838272924,3.2078,2535.8,2535.5,0.39433]
[1726838273220,3.2078,2535.8,2535.3,4.27]
[1726838273415,3.2078,2535.5,2535.3,4.27]
[1726838273720,3.2078,2535.8,2535.3,4.66436]
[1726838274120,3.2078,2535.8,2535.3,4.27]
[1726838274324,3.60214,2535.5,2534.9,8.86242]
[1726838274519,3.60219,2535.2,2534.7,0.39446]
[1726838274833,3.60219,2535.2,2534.2,5.18431]
[1726838274834,3.2078,2534.9,2534.2,4.27]
[1726838275122,3.2078,2534.9,2534.3,0.39451]
[1726838275320,0.39446,2534.8,2534.2,4.66453]
[1726838275513,3.2078,2534.9,2534.3,3.60232]
[1726838275823,3.2078,2534.6,2534.2,4.27]
[1726838276522,3.2078,2534.6,2534.2,4.66453]
[1726838276718,3.2078,2534.6,2534.3,0.39452]
[1726838276916,3.2078,2534.6,2534.2,4.66453]
[1726838277225,3.2078,2534.6,2534.2,4.27]
[1726838277520,3.2078,2534.6,2534.2,4.66453]
[1726838277710,3.2078,2534.6,2534.2,4.27]
[1726838277920,3.2078,2534.3,2533.9,4.27]
[1726838278124,3.2078,2534.3,2533.6,4.27]
[1726838278125,3.2078,2534.0,2533.6,4.27]
[1726838278419,3.2078,2533.7,2533.2,4.27]
[1726838278724,3.2078,2533.7,2532.8,8.442]
[1726838278725,3.2078,2533.4,2532.8,13.69889]
[1726838278919,3.2078,2533.4,2533.2,4.27]
[1726838279115,3.2078,2533.4,2533.3,0.39468]
[1726838279325,3.2078,2533.4,2533.3,3.9472]
[1726838279524,3.2078,2533.4,2533.3,4.34188]
[1726838280221,3.2078,2533.8,2533.4,0.39465]
[1726838280425,3.2078,2533.8,2533.2,4.27]
[1726838280822,3.2078,2533.4,2532.8,4.27]
[1726838281018,3.2078,2533.1,2532.8,4.27]
[1726838281446,3.2078,2533.1,2532.5,4.27]
[1726838281722,3.2078,2532.7,2532.2,4.27]
[1726838282831,3.2078,2532.7,2532.5,0.3948]
[1726838283128,3.2078,2532.7,2532.2,4.27]
[1726838283321,0.3899,2533.3,2532.6,8.44031025]
[1726838283322,3.2078,2533.3,2532.6,8.44031025]
[1726838283521,3.2078,2533.3,2532.9,4.27]
[1726838283719,3.2078,2533.3,2533.0,0.39472]
[1726838284627,3.2078,2533.3,2532.9,4.27]
[1726838285127,3.2078,2533.3,2533.2,0.39469]
[1726838285319,3.2078,2533.3,2533.2,4.66469]
[1726838285519,3.2078,2533.6,2533.4,0.39465]
[1726838285722,3.2078,2533.6,2533.2,4.27]
[1726838285723,3.2078,2533.6,2533.5,0.39465]
[1726838286324,3.2078,2533.9,2533.2,4.46646454]
[1726838286527,3.2078,2533.9,2533.5,0.39464]
[1726838286835,3.2078,2534.2,2534.1,0.39455]
[1726838287127,3.6163,2534.7,2534.4,0.3945]
[1726838287327,0.4085,2534.7,2534.1,4.27]
[1726838287533,3.2078,2535.0,2534.5,4.27]
[1726838287724,0.39443,2534.9,2534.5,4.27]
[1726838288121,3.2078,2535.0,2534.5,4.27]
[1726838288528,3.2078,2535.0,2534.6,0.39447]
[1726838288829,3.2078,2535.0,2534.8,0.39444]
[1726838289135,0.39433,2535.6,2535.1,0.39439]
[1726838289342,3.60211,2535.7,2535.2,4.27]
[1726838289523,3.2078,2535.7,2535.2,4.27]
[1726838289727,3.2078,2535.7,2535.3,0.39436]
[1726838289929,3.60211,2535.7,2535.2,4.66437]
[1726838290134,3.2078,2535.7,2535.2,4.66437]
[1726838290433,3.2078,2535.7,2535.3,0.39436]
[1726838291129,3.2078,2535.7,2535.2,4.66437]
[1726838291335,3.2078,2535.7,2535.2,4.27]
[1726838291745,0.39433,2535.6,2535.2,4.27]
[1726838291925,3.2078,2535.7,2535.2,4.66437]
[1726838291926,3.60211,2535.7,2535.2,4.66437]
[1726838292230,3.2078,2535.7,2535.2,4.27]
[1726838292427,3.2078,2535.7,2534.9,4.27]
[1726838292632,0.98574,2535.8,2534.9,4.27]
[1726838292633,3.60219,2535.2,2534.9,4.27]
[1726838292825,3.2078,2535.2,2534.5,4.27]
[1726838293141,3.2078,2535.2,2534.6,0.39447]
[1726838293142,0.39442,2535.0,2534.6,0.39447]
[1726838293336,3.2078,2535.2,2534.6,0.39447]
[1726838293633,3.2078,2534.9,2534.6,0.39447]
[1726838294638,3.2078,2534.9,2534.7,0.39446]
[1726838294837,3.2078,2534.9,2534.8,0.39444]
[1726838295141,3.2078,2535.3,2535.2,0.39438]
[1726838295444,3.2078,2535.6,2535.0,3.2078]
[1726838295631,3.2078,2535.6,2535.2,4.27]
[1726838296137,3.2078,2535.6,2535.3,0.39435]
[1726838296430,3.2078,2535.6,2535.2,4.27]
[1726838296631,3.2078,2535.6,2535.3,0.39436]
[1726838296832,3.2078,2535.6,2535.5,0.39434]
[1726838297135,3.2078,2535.6,2535.2,4.27]
[1726838297136,3.6115,2535.9,2535.3,3.2078]
[1726838297338,3.6115,2535.9,2535.5,4.27]
[1726838297540,4.00578,2535.9,2535.5,4.66433]
[1726838297727,3.6115,2535.9,2535.2,4.27]
[1726838298037,3.6115,2535.9,2534.8,1.7694]
[1726838298038,3.2078,2535.3,2534.8,5.0533]
[1726838298335,3.2078,2535.3,2534.8,4.27]
[1726838298639,3.2078,2535.0,2534.5,4.27]
[1726838299139,3.2078,2535.3,2534.8,4.27]